Cogmind - Beta 16.1 @@@ ROGUE MODE // 2026.03.29 @ 13:06:48 Player: Thqwib-Linux Result: Self-destructed Performance ------------- Evolutions (9) 4500 Regions Visited (18) 3600 Robots Destroyed (126) 630 Value Destroyed (3253) 3253 Prototype IDs (48) 960 Alien Tech Used (0) 0 Bonus (3120) 3120 TOTAL SCORE: 16063 Bonus ------- Triggered Max Security 1000 High Alert Combat Kills 128 Follower Combat Kills 32 Hunted by Unchained 500 Entered Garrisons 200 Entered DSFs 1000 Aligned with FarCom 300 Friendly Fire -40 Cogmind --------- Core Integrity 382/1600 Matter 227/300 Energy 100/100 System Corruption 0% Temperature Cool (0) Movement Core (50) Location -1/Access Parts ------- > --- POWER (2) -------- (None) > --- PROPULSION (7) --- (None) > --- UTILITY (14) ----- Enhanced Optical Array Graphene Brace Hacking Suite Advanced System Shield Advanced System Shield > --- WEAPON (2) ------- (None) > --- INVENTORY (5) ---- Enhanced Quantum Rifle Railgun Peak State ------------ > --- POWER ------------ Backup Power VII Micro Antimatter Reactor > --- PROPULSION ------- Xenon Bombardment Thruster Cooled VTOL Module Field Propulsion Drive Impulse Thruster Impulse Thruster Impulse Thruster Array > --- UTILITY ---------- Enhanced Optical Array Advanced Signal Interpreter Improved Terrain Scanner Experimental Terrain Scan Processor Advanced Launcher Guidance Computer Stasis Canceller ECM Suite Improved Propulsion Shielding Graphene Brace Hacking Suite Hacking Suite Advanced System Shield Advanced System Shield > --- WEAPON ----------- Enhanced Quantum Rifle Micro-nuke Launcher > --- INVENTORY -------- Xenon Bombardment Thruster Layered Light Armor Plating Railgun Micro-nuke Launcher [Rating: 141] Favorites ----------- Power Micro Nuclear Core Engine Heavy Ion Engine Power Core Micro Nuclear Core Reactor Micro Antimatter Reactor Propulsion Light Treads Treads Light Treads Leg Aluminum Leg Flight Unit Flight Unit Utility Hacking Suite Device Structural Scanner Storage Large Storage Unit Processor Targeting Computer Hackware Hacking Suite Protection Light Armor Plating Weapon Mini Grenade Launcher Energy Gun Enhanced Quantum Rifle Ballistic Gun Assault Rifle Ballistic Cannon Improved Light Cannon Launcher Mini Grenade Launcher Slashing Weapon Power Sword Build | -11 -10 -10 -9 -9 -9 -8 -8 -7 -7 -6 -5 -4 -4 -4 -3 -2 -2 -1 ------- Run | Yrd Mat Min Mat Min Exi Min Mat Fac DSF Fac Fac Fac DSF Gar Res Res Tes Acc Slots Evolved 18 | . . . 2 . . . 2 2 . 2 2 2 . . 2 2 . 2 Power 1 | . . . . . . . . . . . . 1 . . . . . . Propulsion 5 | . . . 1 . . . 1 . . . . 1 . . 1 . . 1 Utility 12 | . . . 1 . . . 1 2 . 2 2 . . . 1 2 . 1 Weapon . | . . . . . . . . . . . . . . . . . . . Parts Attached 106 | . 7 . 20 2 1 . 7 7 4 13 2 6 4 1 12 15 1 4 Power 9 | . 1 . 2 . . . 1 1 1 . . 1 . . 2 . . . Engine 3 | . 1 . 2 . . . . . . . . . . . . . . . Core 4 | . . . . . . . 1 1 1 . . 1 . . . . . . Reactor 2 | . . . . . . . . . . . . . . . 2 . . . Propulsion 35 | . 3 . 4 . . . 3 4 2 4 . 2 . . 4 7 . 2 Treads 10 | . 3 . 4 . . . 3 . . . . . . . . . . . Leg . | . . . . . . . . . . . . . . . . . . . Wheel . | . . . . . . . . . . . . . . . . . . . Hover . | . . . . . . . . . . . . . . . . . . . Flight 25 | . . . . . . . . 4 2 4 . 2 . . 4 7 . 2 Utility 44 | . 2 . 8 . 1 . 1 1 1 7 2 2 4 1 6 7 . 1 Device 15 | . . . 1 . . . . . . 4 1 1 2 . 2 3 . 1 Storage 3 | . 1 . 1 . 1 . . . . . . . . . . . . . Processor 8 | . 1 . 1 . . . . . . 3 . 1 . . 1 1 . . Hackware 8 | . . . . . . . . 1 1 . 1 . 1 1 2 1 . . Protection 10 | . . . 5 . . . 1 . . . . . 1 . 1 2 . . Artifact . | . . . . . . . . . . . . . . . . . . . Weapon 18 | . 1 . 6 2 . . 2 1 . 2 . 1 . . . 1 1 1 Energy Gun 1 | . . . . . . . . . . . . . . . . 1 . . Energy Cannon . | . . . . . . . . . . . . . . . . . . . Ballistic Gun 8 | . 1 . 5 . . . 1 . . . . . . . . . . 1 Ballistic Cannon 1 | . . . . . . . 1 . . . . . . . . . . . Launcher 5 | . . . 1 2 . . . . . . . 1 . . . . 1 . Special Weapon . | . . . . . . . . . . . . . . . . . . . Impact Weapon . | . . . . . . . . . . . . . . . . . . . Slashing Weapon 3 | . . . . . . . . 1 . 2 . . . . . . . . Piercing Weapon . | . . . . . . . . . . . . . . . . . . . Special Melee Weapon . | . . . . . . . . . . . . . . . . . . . Unidentified Prototypes 5 | . . . 1 . . . . . . . . 2 . . 2 . . . Parts Lost 50 | . . . 3 . . . 3 . 4 1 1 . 1 4 7 6 . 20 Power 4 | . . . . . . . . . . . . . . 1 . 1 . 2 Propulsion 23 | . . . 1 . . . 2 . 3 1 . . . 3 4 2 . 7 Utility 19 | . . . 2 . . . 1 . 1 . 1 . . . 2 3 . 9 Weapon 4 | . . . . . . . . . . . . . 1 . 1 . . 2 Highest Loss Streak 14 | . . . 2 . . . 1 . 4 1 1 . 1 2 5 6 . 14 To Critical Strikes . | . . . . . . . . . . . . . . . . . . . Average Backups 8 | 6 6 8 10 15 14 14 14 7 4 4 4 4 4 4 4 2 4 2 Power . | 1 . . . 1 1 1 1 1 1 1 1 . . . . . . . Propulsion 2 | 4 2 3 3 6 5 5 6 3 1 . . . . . . . 1 . Utility 2 | . . 2 1 3 3 3 2 1 2 3 2 2 2 3 2 . 1 . Weapon 2 | 1 2 3 4 5 5 5 4 1 . . . . 1 . . . 2 1 Tool/Special . | . . . . . . . . . . . . . . . . . . . Unused Backups 22 | . 8 . 2 . . . 2 2 1 1 1 1 1 1 . 1 1 . Power 4 | . 2 . . . . . . . 1 1 . . . . . . . . Propulsion 5 | . 4 . . . . . . 1 . . . . . . . . . . Utility 5 | . 1 . . . . . . 1 . . 1 1 1 . . . . . Weapon 5 | . 1 . 2 . . . 2 . . . . . . . . . . . Tool/Special 3 | . . . . . . . . . . . . . . 1 . 1 1 . Average Slot Usage (%) 89 | . 90 85 98 100 100 100 91 82 82 89 96 93 90 82 72 72 91 82 Engine 4 | . 14 14 11 11 11 11 2 . . . . . . . . . . . Core 3 | . . . . . . . 6 7 7 6 5 8 10 8 1 . 4 3 Treads 15 | . 18 28 32 33 33 33 29 4 . . . . . . . . . . Flight 8 | . . . . . . . . 23 27 24 23 22 21 15 10 15 21 20 Device 8 | . . . . . . . 9 7 7 15 26 21 20 14 13 8 13 13 Storage 5 | . 14 14 11 11 11 11 9 1 . . . . . . . . . . Processor 11 | . 5 . 10 11 11 11 9 7 7 16 17 20 15 15 14 15 17 13 Hackware 6 | . . . . . . . . 5 10 11 9 10 10 20 21 18 17 15 Protection 5 | . . . 9 11 11 11 8 7 5 . . . 3 . . 3 4 3 Ballistic Gun 8 | . 27 28 21 2 . . 13 1 . . . . . . . . . 1 Launcher 4 | . . . . 19 22 22 2 5 7 6 5 5 2 2 . 2 7 3 Slashing Weapon 1 | . . . . . . . . 5 7 6 5 5 5 4 3 . . . Peak Build Rating 141 | 6 7 6 15 14 15 15 23 23 24 62 69 97 98 104 119 138 136 141 Average Rating 42 | 6 6 6 11 14 14 15 19 19 21 40 66 89 94 89 91 102 131 124 On Entrance 44 | 6 6 6 6 14 14 15 15 22 20 22 58 64 97 98 68 54 137 131 Avg Prop Armor Cover (%) 3 | . . . . . . . . . . . . . 5 . . . . 2 Naked Turns . | . . . . . . . . . . . . . . . . . . . Heaviest Build 60 | 12 29 29 49 37 53 53 60 58 14 19 20 23 25 32 35 41 42 44 Greatest Support 83 | 20 40 40 60 60 60 60 83 63 16 22 20 32 32 34 51 42 43 49 Greatest Overweight (x) 1 | . . . . . . . 1 . . . . . 1 . . 1 . . Average Overweight (x) . | . . . . . . . . . . . . . . . . . . . Largest Inventory Capacity 20 | 8 15 15 15 15 20 20 20 20 5 5 5 5 5 5 5 5 5 5 Average Capacity 11 | 8 12 15 15 15 15 20 20 8 5 5 5 5 5 5 5 5 5 5 Most Carried 19 | 6 10 8 15 15 15 14 17 19 5 5 5 5 5 5 5 5 5 4 Average Carried 8 | 6 6 8 10 15 14 14 14 7 4 4 4 4 4 4 4 2 4 2 Final Capacity 20 | 8 15 15 15 15 20 20 20 5 5 5 5 5 5 5 5 5 5 5 Final Carried 17 | 6 8 8 15 15 14 14 17 5 4 4 4 5 5 5 5 4 5 2 Class Distribution -------------------- 44% | Mutant 16% | Hacker-Scout 13% | Scavenger-Mutant 5% | Scavenger-Sprinter 4% | Hacker-Ninja 3% | Scavenger-Scout 3% | Hacker-Sprinter Dominant Class ---------------- Mutant | -10/Materials Mutant | -10/Mines Scavenger-Mutant | -9/Materials Mutant | -9/Mines Mutant | -9/Exiles Mutant | -8/Mines Mutant | -8/Materials Scavenger-Sprinter | -7/Factory Scavenger-Sprinter | -7/DSF Scavenger-Scout | -6/Factory Hacker-Ninja | -5/Factory Hacker-Ninja | -4/Factory Hacker-Assassin | -4/DSF Hacker-Sprinter | -4/Garrison Hacker-Scout | -3/Research Hacker-Scout | -2/Research Hacker-Scout | -2/Testing Hacker-Scout | -1/Access Resources | -11 -10 -10 -9 -9 -9 -8 -8 -7 -7 -6 -5 -4 -4 -4 -3 -2 -2 -1 ----------- Run | Yrd Mat Min Mat Min Exi Min Mat Fac DSF Fac Fac Fac DSF Gar Res Res Tes Acc Matter Collected 3579 | 200 272 . 746 65 . . 989 . 8 202 127 . . . 199 298 160 313 Remotely . | . . . . . . . . . . . . . . . . . . . Salvage Created 3886 | . 459 . 1010 124 . 9 953 . . 202 44 . . . 199 372 160 354 Parts 210 | . 22 . 65 4 . 1 59 . . 9 1 . . . 13 20 1 15 Haulers Intercepted 14 | . 2 . 4 . . . 3 . . 1 . . . . . . 1 3 Recyclers Shooed 2 | . 1 . 1 . . . . . . . . . . . . . . . Parts Field Recycled . | . . . . . . . . . . . . . . . . . . . Retrieved Matter . | . . . . . . . . . . . . . . . . . . . Parts Self-Destructed . | . . . . . . . . . . . . . . . . . . . Prevented . | . . . . . . . . . . . . . . . . . . . Parts Restored . | . . . . . . . . . . . . . . . . . . . Kills | -11 -10 -10 -9 -9 -9 -8 -8 -7 -7 -6 -5 -4 -4 -4 -3 -2 -2 -1 ------- Run | Yrd Mat Min Mat Min Exi Min Mat Fac DSF Fac Fac Fac DSF Gar Res Res Tes Acc Combat Hostiles Destroyed 76 | . 11 . 19 6 . 2 30 . . . . . . . . 4 . 4 Guns 42 | . 11 . 19 . . . 12 . . . . . . . . . . . Cannons 6 | . . . . . . . 6 . . . . . . . . . . . AOE 28 | . . . . 6 . 2 12 . . . . . . . . 4 . 4 Classes Destroyed 15 | . 4 . 3 1 . . 4 . . . . . . . . 1 . 2 Worker 14 | . . . . . . . 3 . . 4 1 . . . 4 2 . . Builder 1 | . . . . . . . . . . . . . . . . . . 1 Tunneler 6 | . . . . . . . 2 . . . . . . . 2 2 . . Hauler 14 | . 2 . 4 . . . 3 . . 1 . . . . . . 1 3 Recycler 5 | . 1 . . . . . . . . . . . . . 1 2 1 . Mechanic 1 | . . . . . . . . . . . . . . . . . . 1 Operator 4 | . . . 2 . . . . . . 1 1 . . . . . . . Watcher 5 | . . . 4 . . . . . . . . . . . . . . 1 Swarmer 29 | . 6 . 6 . . 2 9 . . . . . . . . 2 . 4 Grunt 30 | . 5 . 7 5 . . 13 . . . . . . . . . . . Brawler 1 | . . . . . . . 1 . . . . . . . . . . . Duelist 1 | . . . . 1 . . . . . . . . . . . . . . Sentry 12 | . . . 6 . . . 6 . . . . . . . . . . . Hunter 1 | . . . . . . . 1 . . . . . . . . . . . Programmer 2 | . . . . . . . . . . . . . . . . 2 . . Best Kill Streak 8 | . 3 . 4 3 . 2 7 . . 2 1 . . . 3 8 2 6 Combat Bots Only 5 | . 3 . 4 3 . 2 5 . . . . . . . . 3 . 4 Max Kills in Single Turn 6 | . 1 . 1 2 . 1 2 . . 1 1 . . . 1 6 1 4 Gunslinging 1 | . . . . . . . 1 . . . . . . . . . . . Exploded 4 | . . . . 2 . 1 2 . . . . . . . . 2 . 4 Melee . | . . . . . . . . . . . . . . . . . . . Uniques/NPCs Destroyed . | . . . . . . . . . . . . . . . . . . . Combat | -11 -10 -10 -9 -9 -9 -8 -8 -7 -7 -6 -5 -4 -4 -4 -3 -2 -2 -1 -------- Run | Yrd Mat Min Mat Min Exi Min Mat Fac DSF Fac Fac Fac DSF Gar Res Res Tes Acc Hostile Shots Fired 734 | . 52 . 108 10 . 3 111 . 4 10 20 . 7 47 87 129 . 146 Missed 283 | . 21 . 24 2 . 3 27 . 1 4 12 . 3 31 48 58 . 49 Hits 451 | . 31 . 84 8 . . 84 . 3 6 8 . 4 16 39 71 . 97 Melee 20 | . . . . . . . . . . . . . . . . . . 20 Projectile 431 | . 31 . 84 8 . . 84 . 3 6 8 . 4 16 39 71 . 77 AOE 1 | . . . . . . . . . . . . . . . . . . 1 Critical Strikes 33 | . . . 3 . . . 2 . . 2 . . . . 4 3 . 19 Actively Blocked 21 | . . . . . . . . . . . . . . . . 2 . 19 Damage Taken 8666 | . 283 . 1059 118 . 18 1137 . 150 92 141 . 312 312 920 1582 . 2542 Core 3048 | . 33 . 63 19 . . 125 . . 31 48 . 154 51 395 911 . 1218 Absorbed by Shields 55 | . . . . . . . . . . . . . . . . 55 . . Redirected to Shielding 254 | . . . . . . . . . . . . . 51 . 43 60 . 100 Regen/Repaired (Parts) 389 | . 108 . 166 . . . . . . 16 . . . . . . . 99 Core Remaining (%) 82 | 100 . 86 . . . 79 77 . 100 96 95 . . 82 69 . 37 . Volleys Fired 266 | . 42 . 78 5 . 2 76 . . . . . . 3 2 34 8 16 Largest 2 | . 2 . 2 2 . 2 2 . . . . . . 1 1 1 2 2 Hottest 100 | . 40 . 46 60 . 60 60 . . . . . . 49 49 65 98 100 Shots Fired 478 | . 84 . 155 10 . 4 150 . . . . . . 3 2 34 9 27 Gun 393 | . 84 . 154 . . . 105 . . . . . . . . 28 2 20 Cannon 21 | . . . . . . . 21 . . . . . . . . . . . Launcher 64 | . . . 1 10 . 4 24 . . . . . . 3 2 6 7 7 Special . | . . . . . . . . . . . . . . . . . . . Kinetic 374 | . 84 . 154 . . . 126 . . . . . . . . . . 10 Thermal 40 | . . . . . . . . . . . . . . . . 28 2 10 Explosive 64 | . . . 1 10 . 4 24 . . . . . . 3 2 6 7 7 Electromagnetic . | . . . . . . . . . . . . . . . . . . . Robot Hit Streak 29 | . 11 . 27 2 . 1 29 . . . . . . . . 1 6 9 Robot Miss Streak 5 | . 4 . 3 2 . 1 4 . . . . . . . . 1 . 5 Penetration Max . | . . . . . . . . . . . . . . . . . . . Secondary Targets 2 | . . . 1 . . . 1 . . . . . . . . . . . Max Gunslinging Chain 1 | . . . 1 . . . 1 . . . . . . . . . . . Shots Hit Robots 314 | . 49 . 117 2 . 1 100 . . 11 4 . . . 8 3 5 14 Core Hits 191 | . 20 . 43 15 . 2 66 . . 4 1 . . . 4 16 3 17 Critical Kills 1 | . . . . . . . . . . . . . . . . . . 1 Critical Parts Destroyed 3 | . 1 . 1 . . . 1 . . . . . . . . . . . Critical Strikes 5 | . 1 . 1 . . . 2 . . . . . . . . . . 1 Destroy 4 | . 1 . 1 . . . 1 . . . . . . . . . . 1 Blast 1 | . . . . . . . 1 . . . . . . . . . . . Melee Attacks 144 | . . . . . . . . 5 . 58 22 6 . 20 33 . . . Impact . | . . . . . . . . . . . . . . . . . . . Slashing 144 | . . . . . . . . 5 . 58 22 6 . 20 33 . . . Piercing . | . . . . . . . . . . . . . . . . . . . Sneak Attacks 14 | . . . . . . . . . . 6 1 . . . 7 . . . Combat Hostiles . | . . . . . . . . . . . . . . . . . . . Follow-up Attacks . | . . . . . . . . . . . . . . . . . . . Damage Inflicted 10919 | . 684 . 1703 776 . 144 2938 . . 690 284 . . . 854 955 546 1345 Guns 3978 | . 668 . 1687 . . . 1260 . . . . . . . . 58 . 305 Cannons 301 | . . . . . . . 301 . . . . . . . . . . . Explosions 4911 | . . . . 761 . 144 1311 . . . . . . . 212 897 546 1040 Melee 1616 | . . . . . . . . . . 690 284 . . . 642 . . . Ramming 113 | . 16 . 16 15 . . 66 . . . . . . . . . . . Kinetic 4067 | . 668 . 1687 . . . 1561 . . . . . . . . . . 151 Thermal 212 | . . . . . . . . . . . . . . . . 58 . 154 Explosive 4911 | . . . . 761 . 144 1311 . . . . . . . 212 897 546 1040 Electromagnetic . | . . . . . . . . . . . . . . . . . . . Impact . | . . . . . . . . . . . . . . . . . . . Slashing 1616 | . . . . . . . . . . 690 284 . . . 642 . . . Piercing . | . . . . . . . . . . . . . . . . . . . Highest Corruption 7 | . . . . . . . . . . . . 1 1 1 7 7 7 . Average Corruption 4 | . . . . . . . . . . . . 1 1 1 6 6 7 . Corruption Purged . | . . . . . . . . . . . . . . . . . . . Corruption Blocked . | . . . . . . . . . . . . . . . . . . . Effects 25 | . . . . . . . . . . . . 1 1 3 3 13 4 . Message Errors 6 | . . . . . . . . . . . . . . 1 1 3 1 . Matter Fused 8 | . . . . . . . . . . . . . 1 1 2 2 2 . Heat Flow Errors 3 | . . . . . . . . . . . . . . 1 . 2 . . Energy Discharges 1 | . . . . . . . . . . . . . . . . 1 . . Data Loss (minor) 4 | . . . . . . . . . . . . 1 . . . 2 1 . Misfires 1 | . . . . . . . . . . . . . . . . 1 . . Alerts 1 | . . . . . . . . . . . . . . . . 1 . . Weapon Failures 1 | . . . . . . . . . . . . . . . . 1 . . Overload Shots . | . . . . . . . . . . . . . . . . . . . Overflow Damage 630 | . . . . 20 . . 7 . . 112 68 . . 35 267 . 46 75 Projectiles 7 | . . . . . . . 7 . . . . . . . . . . . Explosions 176 | . . . . 20 . . . . . . . . . 35 . . 46 75 Melee 447 | . . . . . . . . . . 112 68 . . . 267 . . . Knockbacks 1 | . . . . . . . 1 . . . . . . . . . . . Impact . | . . . . . . . . . . . . . . . . . . . Kinetic 1 | . . . . . . . 1 . . . . . . . . . . . Secondary . | . . . . . . . . . . . . . . . . . . . Self-Inflicted Damage 348 | . . . . 24 . 19 33 . . . . . . 68 25 . . 179 Shots 7 | . . . . 1 . 1 1 . . . . . . 1 1 . . 2 Rammed 14 | . 3 . 3 1 . . 7 . . . . . . . . . . . Targets Rammed 17 | . 4 . 3 1 . . 9 . . . . . . . . . . . Kicked 1 | . 1 . . . . . . . . . . . . . . . . . Crushed 2 | . . . . . . . 2 . . . . . . . . . . . Highest Temperature 307 | . . . 21 42 . 6 120 . . . . 4 . 178 28 301 99 307 Average Temperature 43 | . . . 5 20 . 3 24 . . . . 2 . 56 18 73 57 61 Received Heat Transfer 1026 | . 72 . 411 54 . . 387 . . . . . . 12 . 36 . 54 Effects 1 | . . . . . . . . . . . . . . . . 1 . . Energy Bleed 1 | . . . . . . . . . . . . . . . . 1 . . Siege Activations . | . . . . . . . . . . . . . . . . . . . Martial Activations . | . . . . . . . . . . . . . . . . . . . Shielding Activations . | . . . . . . . . . . . . . . . . . . . Robots Disrupted . | . . . . . . . . . . . . . . . . . . . Combat Hostiles . | . . . . . . . . . . . . . . . . . . . Robots Corrupted . | . . . . . . . . . . . . . . . . . . . Combat Hostiles . | . . . . . . . . . . . . . . . . . . . Parts Fried . | . . . . . . . . . . . . . . . . . . . Impact Corruptions . | . . . . . . . . . . . . . . . . . . . Robots Melted . | . . . . . . . . . . . . . . . . . . . Combat Hostiles . | . . . . . . . . . . . . . . . . . . . Parts Melted 1 | . . . . . . . . . . . . . . . . 1 . . Heat Transferred 259 | . . . . . . . . . . . . . . . . 74 . 185 Parts Sabotaged . | . . . . . . . . . . . . . . . . . . . Parts Stolen . | . . . . . . . . . . . . . . . . . . . Parts Stripped . | . . . . . . . . . . . . . . . . . . . Power Chain Reactions . | . . . . . . . . . . . . . . . . . . . Alert | -11 -10 -10 -9 -9 -9 -8 -8 -7 -7 -6 -5 -4 -4 -4 -3 -2 -2 -1 ------- Run | Yrd Mat Min Mat Min Exi Min Mat Fac DSF Fac Fac Fac DSF Gar Res Res Tes Acc Maximum Alert Level 5 | . . . . 1 . . 1 . . . . . . 1 . 1 5 4 Low Security (%) 87 | 100 100 100 100 67 . 100 82 100 100 100 100 100 100 70 100 95 1 . Level 1 5 | . . . . 32 . . 17 . . . . . . 29 . 4 . . Level 2 . | . . . . . . . . . . . . . . . . . . . Level 3 . | . . . . . . . . . . . . . . . . . . . Level 4 5 | . . . . . . . . . . . . . . . . . . 100 Level 5 . | . . . . . . . . . . . . . . . . . . . High Security . | . . . . . . . . . . . . . . . . . . . Max Security 1 | . . . . . . . . . . . . . . . . . 98 . Peak Influence 1882 | . 95 5 171 222 . 100 383 172 74 67 164 74 30 233 127 352 1882 1480 Initial 1128 | . . 5 1 48 . . 7 172 74 17 27 70 30 15 127 24 21 1128 Average 157 | . 33 5 81 142 . 31 122 139 58 10 23 59 24 135 54 61 1711 1375 Influence Increases 5002 | . 331 . 661 234 . 120 1037 5 . 276 247 24 . 252 268 666 282 599 Destroy 0b10 Robot/C 1560 | . 220 . 380 140 . 60 600 . . . . . . . . 80 . 80 Destroy 0b10 Robot/NC 250 | . 15 . 50 . . . 40 . . 30 10 . . . 35 30 10 30 Destroy Leader 358 | . 34 . 126 20 . 10 136 . . 2 . . . . . 10 2 18 Allied During Kill 6 | . . . . 5 . 1 . . . . . . . . . . . . Successful Hack 302 | . 17 . 28 . . . 37 . . 28 21 12 . . 33 54 . 72 Disable Machine 420 | . . . . 15 . 30 60 . . 60 . . . 30 30 15 90 90 Destroy Structure 1116 | . . . 17 54 . 19 104 5 . 36 36 12 . 117 110 207 180 219 Partial Spotted 90 | . . . . . . . . . . . . . . 15 15 30 . 30 Lose Combat Pursuer 900 | . 45 . 60 . . . 60 . . 120 180 . . 90 45 240 . 60 Influence Decreases 5262 | . 316 10 541 167 192 100 677 278 73 254 159 124 24 45 451 671 18 1162 Entered New Map 1568 | . . 10 4 77 192 . 13 208 33 17 29 74 14 5 100 20 18 754 Time Decay 2468 | . 306 . 387 90 . 80 474 70 . 234 120 50 . . 271 188 . 198 Lost Part 491 | . . . 30 . . . 30 . 40 1 10 . 10 40 70 60 . 200 Lost Ally 67 | . 10 . . . . 20 10 . . 2 . . . . 10 5 . 10 Purge Threat 668 | . . . 120 . . . 150 . . . . . . . . 398 . . Squads Dispatched 31 | . 1 . 2 1 . . 3 . . 9 2 . . . 2 4 . 7 Investigation 3 | . 1 . . . . . 1 . . . . . . . . 1 . . Extermination 13 | . . . . . . . . . . 5 1 . . . 2 2 . 3 Reinforcement 14 | . . . 2 . . . 2 . . 4 1 . . . . 1 . 4 Assault 1 | . . . . 1 . . . . . . . . . . . . . . Garrison . | . . . . . . . . . . . . . . . . . . . Intercept . | . . . . . . . . . . . . . . . . . . . Searches Triggered . | . . . . . . . . . . . . . . . . . . . Unchained Authorized 1 | . . . . . . . . . . . . . . . . . . 1 Construction Impeded 1 | . . . . . . . 1 . . . . . . . . . . . Haulers Reinforced 1 | . . . . . . . . . . 1 . . . . . . . . Active Scanning Responses . | . . . . . . . . . . . . . . . . . . . Cargo Convoy Interrupts . | . . . . . . . . . . . . . . . . . . . Stealth | -11 -10 -10 -9 -9 -9 -8 -8 -7 -7 -6 -5 -4 -4 -4 -3 -2 -2 -1 --------- Run | Yrd Mat Min Mat Min Exi Min Mat Fac DSF Fac Fac Fac DSF Gar Res Res Tes Acc Distress Signals 16 | . 2 . 3 . . . 3 . . 1 1 . . . 1 3 . 2 Communications Jammed . | . . . . . . . . . . . . . . . . . . . Distress Signals . | . . . . . . . . . . . . . . . . . . . Times Spotted 262 | . 22 . 32 8 . 3 51 . 1 13 21 1 2 13 23 32 8 32 Peak Tracking Total 18 | . 5 . 7 4 . 3 5 . 1 4 13 1 1 5 13 12 6 18 Tactical Retreats 34 | . 3 . 4 . . . 4 . . 5 3 . 1 4 2 5 . 3 ECM-based Alert Blocks 7 | . . . . . . . . . . . . . 1 2 . . . 4 Traps | -11 -10 -10 -9 -9 -9 -8 -8 -7 -7 -6 -5 -4 -4 -4 -3 -2 -2 -1 ------- Run | Yrd Mat Min Mat Min Exi Min Mat Fac DSF Fac Fac Fac DSF Gar Res Res Tes Acc Traps Triggered 7 | . 1 . . . . . 1 . . . 1 1 1 . . 2 . . Indirectly . | . . . . . . . . . . . . . . . . . . . Trap Hack Attempts . | . . . . . . . . . . . . . . . . . . . Triggered . | . . . . . . . . . . . . . . . . . . . Disarmed . | . . . . . . . . . . . . . . . . . . . Reprogrammed . | . . . . . . . . . . . . . . . . . . . Reused . | . . . . . . . . . . . . . . . . . . . Traps Extracted . | . . . . . . . . . . . . . . . . . . . Installed . | . . . . . . . . . . . . . . . . . . . Triggered . | . . . . . . . . . . . . . . . . . . . Machines | -11 -10 -10 -9 -9 -9 -8 -8 -7 -7 -6 -5 -4 -4 -4 -3 -2 -2 -1 ---------- Run | Yrd Mat Min Mat Min Exi Min Mat Fac DSF Fac Fac Fac DSF Gar Res Res Tes Acc Machines Disabled 28 | . . . . 1 . 2 4 . . 4 . . . 2 2 1 6 6 Max in Single Turn 2 | . . . . 1 . 1 2 . . 1 . . . 1 1 1 2 2 Garrison Access 2 | . . . . . . . . . . . . . . . 2 . . . Machines Repaired . | . . . . . . . . . . . . . . . . . . . Machines Dismantled . | . . . . . . . . . . . . . . . . . . . Machines Sabotaged . | . . . . . . . . . . . . . . . . . . . Overloaded Fab Kills . | . . . . . . . . . . . . . . . . . . . Hacking | -11 -10 -10 -9 -9 -9 -8 -8 -7 -7 -6 -5 -4 -4 -4 -3 -2 -2 -1 --------- Run | Yrd Mat Min Mat Min Exi Min Mat Fac DSF Fac Fac Fac DSF Gar Res Res Tes Acc Machines Accessed 74 | . 5 . 5 . 1 . 8 2 . 16 5 4 . 1 11 10 . 6 Terminals 48 | . 4 . 3 . . . 7 2 . 8 4 2 . 1 7 6 . 4 Fabricators 4 | . . . . . . . . . . 2 . . . . 1 1 . . Repair Stations 10 | . 1 . 2 . . . . . . 1 . 2 . . 1 1 . 2 Recycling Units 1 | . . . . . . . . . . . . . . . . 1 . . Scanalyzers 4 | . . . . . . . 1 . . 1 1 . . . . 1 . . Garrison Access 6 | . . . . . . . . . . 4 . . . . 2 . . . Total Hacks 205 | . 22 . 15 . 1 . 26 3 . 28 9 7 . 1 30 43 . 20 Successful 109 | . 9 . 12 . 1 . 16 1 . 15 3 2 . 1 20 23 . 6 Failed 94 | . 13 . 3 . . . 9 2 . 13 6 5 . . 10 19 . 14 Catastrophic 15 | . . . . . . . 1 . . 6 . . . . 1 3 . 4 Database Lockouts 2 | . . . . . . . 1 . . . . . . . . 1 . . Manual 69 | . 16 . 8 . 1 . 14 1 . 7 2 1 . . 6 11 . 2 Terminals 138 | . 18 . 9 . . . 20 3 . 14 7 5 . 1 22 28 . 11 Fabricators 14 | . . . . . . . . . . 4 . . . . 5 5 . . Repair Stations 29 | . 4 . 6 . . . . . . 3 . 2 . . 1 4 . 9 Recycling Units 4 | . . . . . . . . . . . . . . . . 4 . . Scanalyzers 12 | . . . . . . . 6 . . 2 2 . . . . 2 . . Garrison Access 7 | . . . . . . . . . . 5 . . . . 2 . . . Terminal Hacks 44 | . 2 . 4 . 1 . 4 1 . 5 2 1 . 1 10 12 . 1 Record 3 | . . . . . . . . . . . . . . . . 2 . 1 Part Schematic 1 | . . . . . . . . . . 1 . . . . . . . . Robot Analysis 2 | . 1 . . . . . 1 . . . . . . . . . . . Prototype ID Bank 8 | . 1 . 2 . . . 1 . . 1 1 . . . 1 1 . . Open Door 1 | . . . . . . . . . . 1 . . . . . . . . Open DSF 5 | . . . . . . . . 1 . 2 1 1 . . . . . . Level Access Points 2 | . . . . . . . . . . . . . . . 1 1 . . Branch Access Points 1 | . . . . . . . . . . . . . . . . 1 . . Machine Index 1 | . . . . . . . . . . . . . . . 1 . . . Terminal Index 1 | . . . . . . . . . . . . . . . . 1 . . Repair Station Index 1 | . . . . . . . . . . . . . . . 1 . . . Garrison Index 1 | . . . . . . . . . . . . . . . 1 . . . Unreport Threat 6 | . . . 2 . . . 1 . . . . . . . . 3 . . Locate Traps 2 | . . . . . . . . . . . . . . . 1 1 . . Maintenance Status 1 | . . . . . . . . . . . . . . . 1 . . . Transport Status 1 | . . . . . . . . . . . . . . . 1 . . . Recall Reinforcements 1 | . . . . . . . . . . . . . . . . 1 . . Hauler Manifests 2 | . . . . . . . 1 . . . . . . . 1 . . . Registered Components 1 | . . . . . . . . . . . . . . . 1 . . . Registered Prototypes 1 | . . . . . . . . . . . . . . . . 1 . . Garrison Registry 1 | . . . . . . . . . . . . . . 1 . . . . Proto ID Catalog 1 | . . . . . 1 . . . . . . . . . . . . . Fabricator Hacks 10 | . . . . . . . . . . 4 . . . . 4 2 . . Network Status 2 | . . . . . . . . . . 1 . . . . 1 . . . Load Schematic 4 | . . . . . . . . . . 1 . . . . 2 1 . . Build 4 | . . . . . . . . . . 2 . . . . 1 1 . . Repair Station Hacks 17 | . 4 . 5 . . . . . . 2 . . . . . 2 . 4 Scan Component 9 | . 2 . 3 . . . . . . 1 . . . . . 1 . 2 Repair 7 | . 2 . 2 . . . . . . 1 . . . . . . . 2 Refit 1 | . . . . . . . . . . . . . . . . 1 . . Recycling Unit Hacks 3 | . . . . . . . . . . . . . . . . 3 . . Recycle Component 1 | . . . . . . . . . . . . . . . . 1 . . Process 1 | . . . . . . . . . . . . . . . . 1 . . Retrieve Matter 1 | . . . . . . . . . . . . . . . . 1 . . Scanalyzer 9 | . . . . . . . 5 . . 2 . . . . . 2 . . Insert Component 3 | . . . . . . . 2 . . 1 . . . . . . . . Analyze 3 | . . . . . . . 2 . . 1 . . . . . . . . Retrieve Study 3 | . . . . . . . 1 . . . . . . . . 2 . . Garrison Access Hacks 2 | . . . . . . . . . . . . . . . 2 . . . Seal Access 2 | . . . . . . . . . . . . . . . 2 . . . Unauthorized Hacks 24 | . 3 . 3 . . . 7 . . 2 1 1 . . 4 2 . 1 Terminals 24 | . 3 . 3 . . . 7 . . 2 1 1 . . 4 2 . 1 Assimilate 6 | . 1 . . . . . 1 . . 1 . . . . 1 1 . 1 Botnet 17 | . 2 . 3 . . . 6 . . 1 1 1 . . 3 . . . Disrupt 1 | . . . . . . . . . . . . . . . . 1 . . Fabricators . | . . . . . . . . . . . . . . . . . . . Repair Stations . | . . . . . . . . . . . . . . . . . . . Recycling Units . | . . . . . . . . . . . . . . . . . . . Scanalyzers . | . . . . . . . . . . . . . . . . . . . Garrison Access . | . . . . . . . . . . . . . . . . . . . Data Cores Recovered . | . . . . . . . . . . . . . . . . . . . Used . | . . . . . . . . . . . . . . . . . . . Hacking Detections 57 | . 4 . 5 . . . 8 1 . 10 4 4 . . 9 8 . 4 Full Trace Events 1 | . . . . . . . . . . . . . . . . 1 . . Feedback Events . | . . . . . . . . . . . . . . . . . . . Feedback Blocked . | . . . . . . . . . . . . . . . . . . . Robot Schematics Acquired . | . . . . . . . . . . . . . . . . . . . Robots Built . | . . . . . . . . . . . . . . . . . . . Authchips . | . . . . . . . . . . . . . . . . . . . Time . | . . . . . . . . . . . . . . . . . . . Total Robot Build Rating . | . . . . . . . . . . . . . . . . . . . Part Schematics Acquired 4 | . . . . . . . 2 . . 2 . . . . . . . . Parts Built 5 | . . . . . . . . . . 3 . . . . 1 1 . . Authchips 2 | . . . . . . . . . . 1 . . . . 1 . . . Time 373 | . . . . . . . . . . 262 . . . . 67 44 . . Total Part Build Rating 28 | . . . . . . . . . . 20 . . . . 4 4 . . Part Studies Acquired 3 | . . . . . . . 1 . . . . . . . . 2 . . Parts Repaired 7 | . 2 . 2 . . . . . . 1 . . . . . . . 2 Time 174 | . 52 . 39 . . . . . . 26 . . . . . . . 57 Parts Recycled 1 | . . . . . . . . . . . . . . . . 1 . . Recycled Matter 87 | . . . . . . . . . . . . . . . . 87 . . Retrieved Matter 87 | . . . . . . . . . . . . . . . . 87 . . Retrieved Components . | . . . . . . . . . . . . . . . . . . . Parts Scanalyzed 3 | . . . . . . . 2 . . 1 . . . . . . . . Part Schematics Acquired 3 | . . . . . . . 2 . . 1 . . . . . . . . Parts Damaged . | . . . . . . . . . . . . . . . . . . . Bothacking | -11 -10 -10 -9 -9 -9 -8 -8 -7 -7 -6 -5 -4 -4 -4 -3 -2 -2 -1 ------------ Run | Yrd Mat Min Mat Min Exi Min Mat Fac DSF Fac Fac Fac DSF Gar Res Res Tes Acc Used RIF Installer . | . . . . . . . . . . . . . . . . . . . Robots Hacked . | . . . . . . . . . . . . . . . . . . . Non-combat . | . . . . . . . . . . . . . . . . . . . Combat . | . . . . . . . . . . . . . . . . . . . Robot Hacks Applied . | . . . . . . . . . . . . . . . . . . . Relay Couplers Released . | . . . . . . . . . . . . . . . . . . . Fabnet Peak Effective % . | . . . . . . . . . . . . . . . . . . . Robots Rewired . | . . . . . . . . . . . . . . . . . . . Allies Hacked 1 | . . . . . . . . . . 1 . . . . . . . . Hacks Repelled . | . . . . . . . . . . . . . . . . . . . Allies | -11 -10 -10 -9 -9 -9 -8 -8 -7 -7 -6 -5 -4 -4 -4 -3 -2 -2 -1 -------- Run | Yrd Mat Min Mat Min Exi Min Mat Fac DSF Fac Fac Fac DSF Gar Res Res Tes Acc Total Allies 7 | . 1 . . 1 . . 1 . . 1 . . . . 1 1 . 1 Largest Group 1 | . 1 . . 1 1 1 1 . . 1 . . . . 1 1 . 1 Highest-Rated Group 45 | . 10 . . 31 31 31 10 . . 10 . . . . 26 10 . 45 Highest-Rated Ally 45 | . 10 . . 31 31 31 10 . . 10 . . . . 26 10 . 45 Total Orders . | . . . . . . . . . . . . . . . . . . . Ally Attacks 6 | . . . . 1 . 5 . . . . . . . . . . . . Total Damage 87 | . . . . 22 . 65 . . . . . . . . . . . . Kills 2 | . . . . 1 . 1 . . . . . . . . . . . . Allies Corrupted . | . . . . . . . . . . . . . . . . . . . Allies Melted . | . . . . . . . . . . . . . . . . . . . Intel | -11 -10 -10 -9 -9 -9 -8 -8 -7 -7 -6 -5 -4 -4 -4 -3 -2 -2 -1 ------- Run | Yrd Mat Min Mat Min Exi Min Mat Fac DSF Fac Fac Fac DSF Gar Res Res Tes Acc Active Infowar (turns) 5775 | . 320 . 84 . . . 1738 157 41 1014 341 116 71 286 625 490 91 401 Optics 2829 | . . . . . . . . . . 408 341 116 71 286 625 490 91 401 Sensors 180 | . . . . . . . . . . 180 . . . . . . . . Terrain 1456 | . . . . . . . . . . . . 105 71 3 620 195 91 371 Structural 3385 | . . . 84 . . . 1738 157 41 1014 341 10 . . . . . . T.N.C. 320 | . 320 . . . . . . . . . . . . . . . . . Jamming 206 | . . . . . . . . . . . . . 24 167 15 . . . ECM 404 | . . . . . . . . . . 2 . . 15 20 2 . . 365 Robot Analysis Total 2 | . 1 . . . . . 1 . . . . . . . . . . . Derelict Logs Recovered . | . . . . . . . . . . . . . . . . . . . Drone Launches . | . . . . . . . . . . . . . . . . . . . Drone Recoveries . | . . . . . . . . . . . . . . . . . . . Exploration | -11 -10 -10 -9 -9 -9 -8 -8 -7 -7 -6 -5 -4 -4 -4 -3 -2 -2 -1 ------------- Run | Yrd Mat Min Mat Min Exi Min Mat Fac DSF Fac Fac Fac DSF Gar Res Res Tes Acc Turns Passed 8157 | 2 775 12 1107 182 384 298 1738 157 41 1040 341 116 71 286 625 490 91 401 Spaces Moved 9764 | 2 376 8 442 102 238 183 816 347 99 1907 732 348 95 484 1373 918 265 1029 Core 56 | . . . . . . . . . . . . . . . . . . 56 Treads 2031 | . 226 8 442 102 238 183 816 16 . . . . . . . . . . Legs 152 | 2 150 . . . . . . . . . . . . . . . . . Wheels . | . . . . . . . . . . . . . . . . . . . Hover . | . . . . . . . . . . . . . . . . . . . Flight 7525 | . . . . . . . . 331 99 1907 732 348 95 484 1373 918 265 973 Fastest Speed 21 | 120 120 160 160 160 160 160 160 31 31 28 28 24 26 23 29 25 25 21 Average Speed 58 | 120 144 160 160 160 160 160 163 37 31 30 28 25 46 29 33 32 25 27 Slowest Speed 240 | 120 160 160 160 160 160 160 240 163 34 34 28 28 112 40 40 115 25 50 Overloaded Moves 509 | . . . . . . . . . . . . . . 81 17 93 261 57 Propulsion Burnouts . | . . . . . . . . . . . . . . . . . . . Robots Hopped 44 | . . . . . . . . . . 8 5 . . 2 2 12 4 11 Potential Cave-ins 3 | . . . . . . . . . . . . . . 3 . . . . Cave-ins Triggered . | . . . . . . . . . . . . . . . . . . . Exploration Rate (%) 43 | 2 53 7 38 24 61 45 72 13 92 46 32 9 91 72 42 35 52 32 Regions Visited 18 Branch Regions 5 Pre-discovered Areas . | . . . . . . . . . . . . . . . . . . . Known Exits Taken 7 | . . . . . . . . 1 . 1 1 1 . . 1 1 1 . Unknown Exits Taken 8 | 1 1 1 1 1 1 1 1 . . . . . . . . . . . Scrap Searched . | . . . . . . . . . . . . . . . . . . . Spaces Dug 263 | . . . 12 . . . 8 5 . 38 18 6 . 64 21 6 42 43 Terrain Destroyed 710 | . . . 12 69 . 40 105 5 . 38 18 6 . 94 78 73 83 89 Melee 99 | . . . . . . . . 5 . 38 18 6 . 11 21 . . . Projectile 8 | . . . . . . . 1 . . . . . . . . 7 . . AOE 603 | . . . 12 69 . 40 104 . . . . . . 83 57 66 83 89 Terrain Rammed . | . . . . . . . . . . . . . . . . . . . Walls Destroyed . | . . . . . . . . . . . . . . . . . . . Machines Disabled . | . . . . . . . . . . . . . . . . . . . Actions | -11 -10 -10 -9 -9 -9 -8 -8 -7 -7 -6 -5 -4 -4 -4 -3 -2 -2 -1 --------- Run | Yrd Mat Min Mat Min Exi Min Mat Fac DSF Fac Fac Fac DSF Gar Res Res Tes Acc Total 11414 | 1 526 7 686 109 242 184 1080 369 107 2273 829 365 121 588 1482 1060 275 1110 Wait 966 | . 81 . 116 . . . 145 . 2 288 75 . . 73 41 83 . 62 Move 9659 | 1 375 7 441 101 237 182 815 346 98 1890 721 347 94 478 1368 893 258 1007 Hop 41 | . . . . . . . . . . 8 5 . . 1 2 12 2 11 Pick Up 57 | . 7 . 9 . 1 . 6 3 2 4 2 1 3 . 7 10 1 1 Fast Attach 40 | . 2 . 5 . . . 3 . 1 6 1 4 2 . 5 9 . 2 Attach 45 | . 2 . 5 . . . 2 5 2 4 1 1 . 2 7 8 . 6 Detach 23 | . 3 . 2 . . . 1 3 . 1 . 1 1 3 5 . 1 2 Swap 79 | . 3 . 16 2 1 . 19 3 1 7 . 2 2 7 7 2 4 3 Drop 54 | . 7 . 11 . 3 . 4 4 1 7 1 3 4 1 5 2 1 . Fire 266 | . 42 . 78 5 . 2 76 . . . . . . 3 2 34 8 16 Melee 144 | . . . . . . . . 5 . 58 22 6 . 20 33 . . . Ram . | . . . . . . . . . . . . . . . . . . . Kick 1 | . 1 . . . . . . . . . . . . . . . . . Crush 16 | . 3 . 3 1 . . 9 . . . . . . . . . . . Escape Stasis 23 | . . . . . . . . . . . 1 . 15 . . 7 . . Rewire . | . . . . . . . . . . . . . . . . . . . Trap . | . . . . . . . . . . . . . . . . . . . Miscellaneous . | . . . . . . . . . . . . . . . . . . . Route ------- -11/Scrapyard -10/Materials (discovered 2 exits: *Mat / [*Min]) -10/Mines -9/Materials (discovered 2 exits: [*Min] / [*Sto]) -9/Mines -9/Exiles -8/Mines -8/Materials -7/Factory -7/DSF -6/Factory (discovered 4 exits: *Fac / *Low / *Ext x2) -5/Factory (discovered 2 exits: *Fac / *Upp) -4/Factory (discovered 2 exits: *Res / DSF) -4/DSF -4/Garrison (discovered 3 exits: *Res x3) -3/Research (discovered 4 exits: *Res x3 / [Qua]) -2/Research (discovered 5 exits: Acc x3 / *Tes x2) -2/Testing -1/Access History --------- Turn | Location | Event 1 | -11/Scrapyard | Discovered new exit (range 1) 3 | -11/Scrapyard | Entered Materials 48 | -10/Materials | Discovered new exit (range 12) 305 | -10/Materials | Build established: Mutant 534 | -10/Materials | Discovered new exit (range 16) 647 | -10/Materials | Repaired Assault Rifle 674 | -10/Materials | Repaired Lgt. Treads 778 | -10/Materials | Entered Mines 783 | -10/Mines | Discovered new exit (range 4) 790 | -10/Mines | Entered Materials 790 | -9/Materials | Evolved 2 slots: Propulsion x1, Utility x1 832 | -9/Materials | Repaired Assault Rifle 968 | -9/Materials | Discovered new exit (range 16) 1248 | -9/Materials | Build established: Scavenger-Mutant 1764 | -9/Materials | Repaired Lgt. Treads 1779 | -9/Materials | Discovered new exit (range 6) 1897 | -9/Materials | Entered Mines 1970 | -9/Mines | Met a Derelict testing a Signal Generator 2000 | -9/Mines | Assembled infested the area 2005 | -9/Mines | Assisted by a Guerilla fighting off Assembled 2071 | -9/Mines | Deemed a non-threat by the Exiles lab entrance 2072 | -9/Mines | Discovered new exit (range 5) 2079 | -9/Mines | Entered Exiles 2079 | -9/Exiles | Accompanied by 1 ally 2116 | -9/Exiles | Met 8R-AWN 2132 | -9/Exiles | Build established: Mutant 2145 | -9/Exiles | Met EX-HEX 2191 | -9/Exiles | Met EX-BIN 2214 | -9/Exiles | Aligned with FarCom system 2215 | -9/Exiles | Given EX-Vault access code 2257 | -9/Exiles | Opened EX-Vault 2276 | -9/Exiles | Found Supersonic Drone Bay 2305 | -9/Exiles | Warned to stay clear of 0b10 Research branches 2353 | -9/Exiles | Met EX-DEC 2450 | -9/Exiles | Discovered new exit (range 10) 2463 | -9/Exiles | Left Exiles lab with Supersonic Drone Bay 2463 | -9/Exiles | Entered Mines 2463 | -8/Mines | Accompanied by 1 ally 2753 | -8/Mines | Discovered new exit (range 5) 2761 | -8/Mines | Entered Materials 2761 | -8/Materials | Evolved 2 slots: Propulsion x1, Utility x1 3208 | -8/Materials | Central database locked down 4448 | -8/Materials | Discovered new exit (range 5) 4499 | -8/Materials | Entered Factory 4499 | -7/Factory | Evolved 2 slots: Utility x2 4630 | -7/Factory | Identified exit to DSF 4656 | -7/Factory | Entered DSF 4679 | -7/DSF | Additional patrols routed to DSF 4681 | -7/DSF | Discovered new exit (range 15) 4697 | -7/DSF | Entered Factory 4697 | -6/Factory | Evolved 2 slots: Utility x2 4714 | -6/Factory | Lost 4 parts (3n1u) 4733 | -6/Factory | Repaired Structural Scanner 5113 | -6/Factory | Discovered new exit (range 8) 5116 | -6/Factory | Identified exit to Lower Caves 5319 | -6/Factory | Fabricated Adv. Remote Datajack (x2) 5343 | -6/Factory | Discovered new exit (range 10) 5349 | -6/Factory | Identified exit to Factory 5412 | -6/Factory | Discovered new exit (range 11) 5479 | -6/Factory | Build established: Scavenger-Scout 5482 | -6/Factory | Discovered new exit (range 6) 5483 | -6/Factory | Identified exit to Extension 5606 | -6/Factory | Fabricated Cld. VTOL Module? 5737 | -6/Factory | Entered another Factory area 5737 | -5/Factory | Evolved 2 slots: Utility x2 5782 | -5/Factory | Discovered new exit (range 22) 5814 | -5/Factory | Identified exit to Upper Caves 6048 | -5/Factory | Discovered new exit (range 21) 6054 | -5/Factory | Identified exit to Factory 6078 | -5/Factory | Entered another Factory area 6078 | -4/Factory | Evolved 2 slots: Power x1, Propulsion x1 6084 | -4/Factory | Build established: Hacker-Ninja 6085 | -4/Factory | Found Prototype Processor 6085 | -4/Factory | Identified Exp. Terrain Scan Processor 6133 | -4/Factory | Identified exit to DSF 6175 | -4/Factory | Discovered new exit (range 14) 6194 | -4/Factory | Entered DSF 6249 | -4/DSF | Additional patrols routed to DSF 6257 | -4/DSF | Discovered new exit (range 18) 6265 | -4/DSF | Identified exit to Garrison 6265 | -4/DSF | Entered Garrison 6272 | -4/Garrison | Discovered new exit (range 64) 6272 | -4/Garrison | Discovered new exit (range 51) 6272 | -4/Garrison | Discovered new exit (range 43) 6326 | -4/Garrison | Spotted B-86 Titan 6326 | -4/Garrison | Triggered checkpoint 6362 | -4/Garrison | Identified exit to Research 6363 | -4/Garrison | Attempted to access garrison exit controls, blocked by remote lockdown 6367 | -4/Garrison | H-XX Assembler disabled 6447 | -4/Garrison | Triggered checkpoint 6449 | -4/Garrison | Triggered checkpoint 6463 | -4/Garrison | Spotted B-75 Beast 6464 | -4/Garrison | Attempted to access garrison exit controls, blocked by remote lockdown 6551 | -4/Garrison | Entered Research 6551 | -3/Research | Evolved 2 slots: Propulsion x1, Utility x1 6703 | -3/Research | Fabricated Cld. VTOL Module (x1) 6767 | -3/Research | Identified exit to Research 6850 | -3/Research | Build established: Hacker-Scout 6860 | -3/Research | Discovered new exit (range 13) 7087 | -3/Research | Watched by a mysterious "MATRIX" hacker. 7088 | -3/Research | Spotted B-86 Titan 7176 | -3/Research | Entered another Research area 7176 | -2/Research | Evolved 2 slots: Utility x2 7202 | -2/Research | Lost 5 parts (3n1u1w) 7218 | -2/Research | Spotted B-90 Cyclops 7293 | -2/Research | Core integrity fell below 50% 7325 | -2/Research | Lost 6 parts (1p2n3u) 7426 | -2/Research | Fabricated Cld. VTOL Module (x1) 7524 | -2/Research | Discovered new exit (range 7) 7532 | -2/Research | Identified exit to Testing 7537 | -2/Research | Identified exit to Access 7537 | -2/Research | Central database locked down 7666 | -2/Research | Entered Testing 7667 | -2/Testing | Maximum security lockdown engaged 7730 | -2/Testing | Discovered exit to Access (range 17) 7757 | -2/Testing | Entered Access 7757 | -1/Access | Evolved 2 slots: Propulsion x1, Utility x1 7788 | -1/Access | Repaired Mic. Antimatter Reactor+ 7850 | -1/Access | Repaired Cld. VTOL Module 7869 | -1/Access | Unchained authorized (6S-H0T) 8029 | -1/Access | Lost 4 parts (1n2u1w) 8116 | -1/Access | Spotted B-99 Colossus 8139 | -1/Access | Core integrity fell below 50% 8158 | -1/Access | Self-destructed Last Messages --------------- 08126_ Impulse Thruster destroyed. 08127_ ALERT: Hostiles spotted, dispatching reinforcements to Terminal A010. 08127_ Knocked back. 08128_ Imp. Terrain Scanner destroyed. 08129_ U-05 Engineer builds a Wall. 08129_ Cld. VTOL Module destroyed. 08129_ ECM Suite destroyed. 08132_ U-05 Engineer lays Concrete. 08132_ Penetrated by Slug. 08133_ U-05 Engineer lays Concrete. 08133_ U-05 Engineer builds a Wall. 08134_ U-05 Engineer lays Concrete. 08135_ Adv. Launcher Guidance Computer destroyed. 08136_ ALERT: Security rotation in progress. 08140_ ALERT: Hostiles spotted, dispatching reinforcements to Terminal A009. 08149_ Hacking Suite destroyed. 08156_ ALERT: Potential suspicious activity detected, Programmers report to Access Zone 5S. Map ----- +----------------------------------------------------+ | ?????????# # # != #??????????????? | | ???????? + + # != #??????????????? | | ???????""# # # = [ #??????????????? | | ?????? ""# #?? # #??????????????? | | ????? T?# #???? # #??????????????? | | ???? ??# #?????? # ] #??????????????? | | ??? ????# #???????# #??????????????? | | ?? ?????# #???????##########??????????????? | | ?????????# #???????????????????????????????? | | ?????????# #???????????????????????????????? | | ?????????# #???????????????????????????????? | | ?????????# #?###########???????????????????? | | ?????????# #?# #???????????????????? | | ?????????# #?# #???????????????????? | | ?????????# #?# #???????????????????? | | ?????????# p#?# #???????????????????? | | ?????????# p#?# #???????????????????? | | ?????????# #?# #???????????????????? | | ?????????# #?? ????????????????????? | | ?????????# #???? ??????????????????????? | | ?????????# #######/###?????????????????????? | | ?????????+ c #?????????????????????? | | ?????????# c #?????????????????????? | | ?????????# c #?????????????????????? | | ?????????######+####/#+###???????????????????? | | ????????????????# @ #???????????????????? | | ????????????????# #???????????????????? | | ????????????????#!! ""#???????????????????? | | ????????????????#!! ""#???????????????????? | | ????????????????#!! Y"#???????????????????? | | ????????????????# ""#???????????????????? | | ????????????????# ""#???????????????????? | | ????????????????# #???????????????????? | | ????????????????# #???????????????????? | | ????????????????##########???????????????????? | | ?????????????????????????????????????????????? | | ?????????????????????????????????????????????? | | ?????????????????????????????????????????????? | | ?????????????????????????????????????????????? | | ?????????????????????????????????????????????? | | ?????????????????????????????????????????????? | | ?????????????????????????????????????????????? | | ?????????????????????????????????????????????? | | ?????????????????????????????????????????????? | | ?????????????????????????????????????????????? | | ?????????????????????????????????????????????? | | ?????????????????????????????????????????????? | | ?????????????????????????????????????????????? | | ?????????????????????????????????????????????? | | ?????????????????????????????????????????????? | +----------------------------------------------------+ Best States ------------- Heat Dissipation 52 Energy Generation 38 Energy Capacity 280 Matter Stores 300 Matter Capacity 300 Sight Range 22 Robot Scan Range 16 Terrain Scan Range 20 Terrain Scan Density 1010 ECM Strength 2 Jamming Range 16 Power Amplification 20 Additional Mass Support 16 Armor Coverage 150 Propulsion Shielding 66 Utility Shielding 66 Evasion (%) 77 Targeting Accuracy 5 Melee Accuracy 8 Launcher Accuracy 40 Recoil Reduction 4 Offensive Hacking 30 Defensive Hacking 28 Authchip Count 1 Item Schematics ----------------- Hacking Suite | -8/Materials | Scanalyzed Minigun | -8/Materials | Scanalyzed Cld. VTOL Module | -6/Factory | Hacked Mni. Grenade Launcher | -6/Factory | Scanalyzed Robot Schematics ------------------ None Fabricated ------------ Adv. Remote Datajack | x2 | -6/Factory | Preloaded Cld. VTOL Module | x1 | -6/Factory | Authchip Cld. VTOL Module | x1 | -3/Research | Authchip Cld. VTOL Module | x1 | -2/Research Repaired ---------- Assault Rifle | 28% | -10/Materials Lgt. Treads | 74% | -10/Materials Assault Rifle | 57% | -9/Materials Lgt. Treads | 12% | -9/Materials Structural Scanner | 20% | -6/Factory Mic. Antimatter Reactor | 2% | -1/Access Cld. VTOL Module | 48% | -1/Access Studied --------- Mni. Grenade Launcher | -8/Materials | Hacked Micro-nuke Launcher | -2/Research | Hacked Mic. Antimatter Reactor | -2/Research | Hacked Alien Tech Used ----------------- None Achievements -------------- The Better Part Of Valor Challenges ------------ None Game ------ Seed CannonMiniFist Manual? 0 Play Time 02:24:26 Cumulative 73.3 hours Start 2026.03.28 @ 21:13:52 End 2026.03.29 @ 13:06:48 Sessions 9 Manual Loads 0 Difficulty Rogue Special Mode None Game No. 69 Rogue 69 Adventurer 0 Explorer 0 Win Type - Total 2 Types 1/0/1/0/0/0/0/0/0/0 Lore% 50 Gallery% 40 Achievement% 37 Wizard Run 0 Options --------- Layout 0 ASCII 0 Keyboard 1 Movement Arrows Keybinds 0 Fullscreen 2 Font 18/X11Bold Map View 76x50 Zoom Use 0% Tactical HUD 1 Map Filters NONE Filters NONE Steam 1 RUN: 126e5358-2710-4cd8-b0d3-62cf67051006